{"text_format":"1","workbook":"xlsx","n_sheets":10,"sheets":["REKAPITULACE","REKAPITULACE POLOŽKOVÁ","1.NP - LDN A","2.NP - LDN A","1.NP-LDN B","2.NP-LDN B","1.NP-LDN-A-Revmatologie","2.NP-LDN-A4.I","3.NP-Interna","4.NP-Rehabilitace"],"not_rendered":{"charts":0,"images":0,"macros":1,"external_links":0,"defined_names":0,"comments":0,"pivot_tables":0},"unopened":[],"bounds":{"document_bytes":16777216,"sheet_cells":100000,"rows_first":2000,"rows_last":500,"rows_between":2000,"halvings":0,"cell_chars":16384,"cell_head_chars":4096},"cells_cut":0,"cells_raw":0,"read":"whole","date_system":"1900"}

{"sheet":"REKAPITULACE","index":0,"n_rows":29,"n_cols":4,"rows_kept":29,"cut":false,"hidden":false,"merged":[[21,0,21,1],[15,0,15,1],[0,0,3,2],[4,0,5,2],[6,0,7,2],[8,0,8,2],[9,0,9,2],[10,0,11,2],[12,0,12,2],[13,0,13,1],[14,0,14,1],[16,0,16,1],[17,0,17,1],[18,0,18,1],[19,0,19,1],[20,0,20,1],[28,0,28,7],[31,0,31,7],[22,0,22,2],[23,0,23,1],[25,0,25,1],[26,0,27,2]]}
[" Výkaz výměr - REKAPITULACE - Stavební část"]
[]
[]
[]
["Název zakázky: Nemocnice Nový Bydžov - Kompletní výměna dorozumívacích zařízení sestra - pacient"]
[]
["Zadavatel: Oblastní nemocnice Jičín, a.s.,Bolzanova 512, Valdické Předměstí, 506 01 Jičín"]
[]
["Objekt: Nemocnice Nový Bydžov"]
[]
[]
[]
["Rekapitulace nabídky:"]
["Oddělení:",null,"Cena bez DPH:"]
["Půdorys 1.NP - Budova LDN - A",null,{"$f":"'1.NP - LDN A'!I27","v":0}]
["Půdorys 2.NP - Budova LDN - A",null,{"$f":"'2.NP - LDN A'!I27","v":0}]
["Půdorys 1.NP - Budova LDN - B",null,{"$f":"'1.NP-LDN B'!I27","v":0}]
["Půdorys 2.NP - Budova LDN - B",null,{"$f":"'2.NP-LDN B'!I27","v":0}]
["Půdorys 1.NP - Budova LDN - A - Revmatologie",null,{"$f":"'1.NP-LDN-A-Revmatologie'!I27","v":0}]
["Půdorys 2.NP - Budova LDN - A4 - I",null,{"$f":"'2.NP-LDN-A4.I'!I27","v":0}]
["Půdorys 3.NP - Budova Interna",null,{"$f":"'3.NP-Interna'!I27","v":0}]
["Půdorys 4.NP - Budova Rehabilitace",null,{"$f":"'4.NP-Rehabilitace'!I27","v":0}]
[]
["Cena celkem - cena bez DPH:",null,{"$f":"SUM(C15:C22)","v":0},{"$f":"'1.NP - LDN A'!I27+'2.NP - LDN A'!I27+'1.NP-LDN B'!I27+'2.NP-LDN B'!I27+'1.NP-LDN-A-Revmatologie'!I27+'2.NP-LDN-A4.I'!I27+'3.NP-Interna'!I27+'4.NP-Rehabilitace'!I27","v":0}]
["DPH 21%:",0.21,{"$f":"C24*B25","v":0}]
["Cena celkem s DPH",null,{"$f":"C24+C25","v":0}]
[]
[]
["Ceny jsou uvedeny v cenové relaci roku 2024 v Kč.  "]

{"sheet":"REKAPITULACE POLOŽKOVÁ","index":1,"n_rows":28,"n_cols":10,"rows_kept":28,"cut":false,"hidden":false,"merged":[[0,1,0,8],[1,1,1,8],[2,1,2,8],[3,1,4,1],[3,2,4,2],[3,3,4,3],[3,4,4,4],[3,5,3,6],[3,7,3,8],[26,1,26,7],[27,1,27,8],[28,1,28,8],[30,7,30,8],[31,1,31,8]]}
[null,"Výkaz výměr  \"Nemocnice Nový Bydžov - Kompletní výměna dorozumívacích zařízení sestra - pacient\""]
[null,"Objekt: Nemocnice Nový Bydžov - Budova LDN - A _REKAPITULACE POLOŽKOVÁ"]
[]
[null,"Název","Označení","MJ","Množství","materiál",null,"montáž"]
[null,null,null,null,null,"cena/ks","celkem","cena/ks","celkem"]
[null,"Stavební část:"]
[null,"Slaboproudé rozvody - dodávka a montáž vodičů"]
[null,"kabel do trubek, nebo do lišt stíněný LSOHFR","FTP Cat 5e LSOHFR\n B2ca s1,d1,a1","m",{"$f":"'1.NP - LDN A'!E8+'2.NP - LDN A'!E8+'1.NP-LDN B'!E8+'2.NP-LDN B'!E8+'1.NP-LDN-A-Revmatologie'!E8+'2.NP-LDN-A4.I'!E8+'3.NP-Interna'!E8+'4.NP-Rehabilitace'!E8","v":21550},0,{"$f":"E8*F8","v":0},0,{"$f":"E8*H8","v":0}]
[null,"vodič do trubek, nebo do lišt","2x2,5 PRAFlaSafe\nB2ca s1,d1,a1","m",{"$f":"'1.NP - LDN A'!E9+'2.NP - LDN A'!E9+'1.NP-LDN B'!E9+'2.NP-LDN B'!E9+'1.NP-LDN-A-Revmatologie'!E9+'2.NP-LDN-A4.I'!E9+'3.NP-Interna'!E9+'4.NP-Rehabilitace'!E9","v":80},0,{"$f":"E9*F9","v":0},0,{"$f":"H9*E9","v":0}]
[null,"vodič do trubek, nebo do lišt","CYKY-J 3x2,5","m",{"$f":"'1.NP - LDN A'!E10+'2.NP - LDN A'!E10+'1.NP-LDN B'!E10+'2.NP-LDN B'!E10+'1.NP-LDN-A-Revmatologie'!E10+'2.NP-LDN-A4.I'!E10+'3.NP-Interna'!E10+'4.NP-Rehabilitace'!E10","v":240},0,0,0,{"$f":"H10*E10","v":0}]
[null,"Součty:",null,null,null,null,{"$f":"SUM(G8:G10)","v":0},null,{"$f":"SUM(I8:I10)","v":0}]
[]
[null,"Hrubá instalace - trubkování (lištování) a osazení instalačních krabic"]
[null,"instalační materiál (izolační pásky, stahovací plastové pásky, spojovací materiál, svorky, koncovky, štítky, uchycovací materiál…)",null,"kpl",{"$f":"'1.NP - LDN A'!E14+'2.NP - LDN A'!E14+'1.NP-LDN B'!E14+'2.NP-LDN B'!E14+'1.NP-LDN-A-Revmatologie'!E14+'2.NP-LDN-A4.I'!E14+'3.NP-Interna'!E14+'4.NP-Rehabilitace'!E14","v":8},0,{"$f":"E14*F14","v":0},0,{"$f":"E14*H14","v":0}]
[null,"Drátěný žlab rapid click 150x60 včetně konzolí/závitových tyčí a \nmontážního materiálu","HL CVFL60-150","m",{"$f":"'1.NP - LDN A'!E15+'2.NP - LDN A'!E15+'1.NP-LDN B'!E15+'2.NP-LDN B'!E15+'1.NP-LDN-A-Revmatologie'!E15+'2.NP-LDN-A4.I'!E15+'3.NP-Interna'!E15+'4.NP-Rehabilitace'!E15","v":540},0,{"$f":"E15*F15","v":0},0,0]
[null,"Kovová lišta","20x20","m",{"$f":"'1.NP - LDN A'!E16+'2.NP - LDN A'!E16+'1.NP-LDN B'!E16+'2.NP-LDN B'!E16+'1.NP-LDN-A-Revmatologie'!E16+'2.NP-LDN-A4.I'!E16+'3.NP-Interna'!E16+'4.NP-Rehabilitace'!E16","v":1000},0,0,0,0]
[null,"oprava otvorů po demontáži prvku (upravení původního otvoru - sádrování - bez malby, usazení nové instalační krabice)",null,"hod",{"$f":"'1.NP - LDN A'!E17+'2.NP - LDN A'!E17+'1.NP-LDN B'!E17+'2.NP-LDN B'!E17+'1.NP-LDN-A-Revmatologie'!E17+'2.NP-LDN-A4.I'!E17+'3.NP-Interna'!E17+'4.NP-Rehabilitace'!E17","v":240},"x","x",0,0]
[null,"pomocné montážní, instalační a stavební práce (přesun hmot a materiálu, stěhování nábytku, propoj s tel. ústřednou, propoj s datovou sítí objektu, nepředvídatelné práce)",null,"hod",{"$f":"'1.NP - LDN A'!E18+'2.NP - LDN A'!E18+'1.NP-LDN B'!E18+'2.NP-LDN B'!E18+'1.NP-LDN-A-Revmatologie'!E18+'2.NP-LDN-A4.I'!E18+'3.NP-Interna'!E18+'4.NP-Rehabilitace'!E18","v":240},"x","x",0,{"$f":"H18*E18","v":0}]
[null,"odkrytí stávajících elektroinstalačních lišt, krabic, součinnost s technickým pracovníkem/správcem objektu",null,"hod",{"$f":"'1.NP - LDN A'!E19+'2.NP - LDN A'!E19+'1.NP-LDN B'!E19+'2.NP-LDN B'!E19+'1.NP-LDN-A-Revmatologie'!E19+'2.NP-LDN-A4.I'!E19+'3.NP-Interna'!E19+'4.NP-Rehabilitace'!E19","v":160},"x","x",0,0]
[null,"Koordinace stavby",null,"hod",{"$f":"'1.NP - LDN A'!E20+'2.NP - LDN A'!E20+'1.NP-LDN B'!E20+'2.NP-LDN B'!E20+'1.NP-LDN-A-Revmatologie'!E20+'2.NP-LDN-A4.I'!E20+'3.NP-Interna'!E20+'4.NP-Rehabilitace'!E20","v":40},"x","x",0,0]
[null,"Práce za provozu (provoz investora)",null,"kpl",{"$f":"'1.NP - LDN A'!E21+'2.NP - LDN A'!E21+'1.NP-LDN B'!E21+'2.NP-LDN B'!E21+'1.NP-LDN-A-Revmatologie'!E21+'2.NP-LDN-A4.I'!E21+'3.NP-Interna'!E21+'4.NP-Rehabilitace'!E21","v":8},"x","x",0,0]
[null,"Dokumentace skutečného provedení a dílenská dokumentace",null,"kpl",{"$f":"'1.NP - LDN A'!E22+'2.NP - LDN A'!E22+'1.NP-LDN B'!E22+'2.NP-LDN B'!E22+'1.NP-LDN-A-Revmatologie'!E22+'2.NP-LDN-A4.I'!E22+'3.NP-Interna'!E22+'4.NP-Rehabilitace'!E22","v":8},"x","x",0,0]
[null,"demontáž stavajících rozvodů",null,"hod",{"$f":"'1.NP - LDN A'!E23+'2.NP - LDN A'!E23+'1.NP-LDN B'!E23+'2.NP-LDN B'!E23+'1.NP-LDN-A-Revmatologie'!E23+'2.NP-LDN-A4.I'!E23+'3.NP-Interna'!E23+'4.NP-Rehabilitace'!E23","v":80},"x","x",0,0]
[null,"Součty:",null,null,null,null,{"$f":"SUM(G14:G23)","v":0},null,{"$f":"SUM(I14:I23)","v":0}]
[]
[null,"Rekapitulace:"]
[null,"Dodávky a montáže celkem - cena bez DPH:",null,null,null,null,null,null,{"$f":"G24+I24+G11+I11","v":0},{"$f":"'1.NP - LDN A'!I27+'2.NP - LDN A'!I27+'1.NP-LDN B'!I27+'2.NP-LDN B'!I27+'1.NP-LDN-A-Revmatologie'!I27+'2.NP-LDN-A4.I'!I27+'3.NP-Interna'!I27+'4.NP-Rehabilitace'!I27","v":0}]
[null,"Ceny jsou uvedeny v cenové relaci roku 2024 v Kč.  "]

{"sheet":"1.NP - LDN A","index":2,"n_rows":28,"n_cols":9,"rows_kept":28,"cut":false,"hidden":false,"merged":[[0,1,0,8],[1,1,1,8],[2,1,2,8],[3,2,4,2],[3,3,4,3],[3,4,4,4],[31,1,31,8],[26,1,26,7],[3,1,4,1],[3,5,3,6],[3,7,3,8],[28,1,28,8],[30,7,30,8],[27,1,27,8]]}
[null,"Výkaz výměr  \"Nemocnice Nový Bydžov - Kompletní výměna dorozumívacích zařízení sestra - pacient\""]
[null,"Objekt: Nemocnice Nový Bydžov - Budova LDN - A _půdorys 1.NP_výkres č.1"]
[]
[null,"Název","Označení","MJ","Množství","materiál",null,"montáž"]
[null,null,null,null,null,"cena/ks","celkem","cena/ks","celkem"]
[null,"Stavební část:"]
[null,"Slaboproudé rozvody - dodávka a montáž vodičů"]
[null,"kabel do trubek, nebo do lišt stíněný LSOHFR","FTP Cat 5e LSOHFR\n B2ca s1,d1,a1","m",2100,0,{"$f":"E8*F8","v":0},0,{"$f":"E8*H8","v":0}]
[null,"vodič do trubek, nebo do lišt","2x2,5 PRAFlaSafe\nB2ca s1,d1,a1","m",10,0,{"$f":"E9*F9","v":0},0,{"$f":"H9*E9","v":0}]
[null,"vodič do trubek, nebo do lišt","CYKY-J 3x2,5","m",30,0,0,0,{"$f":"H10*E10","v":0}]
[null,"Součty:",null,null,null,null,{"$f":"SUM(G8:G10)","v":0},null,{"$f":"SUM(I8:I10)","v":0}]
[]
[null,"Hrubá instalace - trubkování (lištování) a osazení instalačních krabic"]
[null,"instalační materiál (izolační pásky, stahovací plastové pásky, spojovací materiál, svorky, koncovky, štítky, uchycovací materiál…)",null,"kpl",1,0,{"$f":"E14*F14","v":0},0,{"$f":"E14*H14","v":0}]
[null,"Drátěný žlab rapid click 150x60 včetně konzolí/závitových tyčí a \nmontážního materiálu","HL CVFL60-150","m",60,0,{"$f":"E15*F15","v":0},0,0]
[null,"Kovová lišta","20x20","m",110,0,0,0,0]
[null,"oprava otvorů po demontáži prvku (upravení původního otvoru - sádrování - bez malby, usazení nové instalační krabice)",null,"hod",30,"x","x",0,0]
[null,"pomocné montážní, instalační a stavební práce (přesun hmot a materiálu, stěhování nábytku, propoj s tel. ústřednou, propoj s datovou sítí objektu, nepředvídatelné práce)",null,"hod",30,"x","x",0,{"$f":"H18*E18","v":0}]
[null,"odkrytí stávajících elektroinstalačních lišt, krabic, součinnost s technickým pracovníkem/správcem objektu",null,"hod",20,"x","x",0,0]
[null,"Koordinace stavby",null,"hod",5,"x","x",0,0]
[null,"Práce za provozu (provoz investora)",null,"kpl",1,"x","x",0,0]
[null,"Dokumentace skutečného provedení a dílenská dokumentace",null,"kpl",1,"x","x",0,0]
[null,"demontáž stavajících rozvodů",null,"hod",10,"x","x",0,0]
[null,"Součty:",null,null,null,null,{"$f":"SUM(G14:G23)","v":0},null,{"$f":"SUM(I14:I23)","v":0}]
[]
[null,"Rekapitulace:"]
[null,"Dodávky a montáže celkem - cena bez DPH:",null,null,null,null,null,null,{"$f":"G24+I24+G11+I11","v":0}]
[null,"Ceny jsou uvedeny v cenové relaci roku 2024 v Kč.  "]

{"sheet":"2.NP - LDN A","index":3,"n_rows":28,"n_cols":9,"rows_kept":28,"cut":false,"hidden":false,"merged":[[31,1,31,8],[0,1,0,8],[1,1,1,8],[2,1,2,8],[3,1,4,1],[3,2,4,2],[3,3,4,3],[3,4,4,4],[3,5,3,6],[3,7,3,8],[26,1,26,7],[27,1,27,8],[28,1,28,8],[30,7,30,8]]}
[null,"Výkaz výměr  \"Nemocnice Nový Bydžov - Kompletní výměna dorozumívacích zařízení sestra - pacient\""]
[null,"Objekt: Nemocnice Nový Bydžov - Budova LDN - A_půdorys 2.NP_výkres č.2"]
[]
[null,"Název","Označení","MJ","Množství","materiál",null,"montáž"]
[null,null,null,null,null,"cena/ks","celkem","cena/ks","celkem"]
[null,"Stavební část:"]
[null,"Slaboproudé rozvody - dodávka a montáž vodičů"]
[null,"kabel do trubek, nebo do lišt stíněný LSOHFR","FTP Cat 5e LSOHFR\n B2ca s1,d1,a1","m",3600,0,{"$f":"E8*F8","v":0},0,{"$f":"E8*H8","v":0}]
[null,"vodič do trubek, nebo do lišt","2x2,5 PRAFlaSafe\nB2ca s1,d1,a1","m",10,0,{"$f":"E9*F9","v":0},0,{"$f":"H9*E9","v":0}]
[null,"vodič do trubek, nebo do lišt","CYKY-J 3x2,5","m",30,0,0,0,{"$f":"H10*E10","v":0}]
[null,"Součty:",null,null,null,null,{"$f":"SUM(G8:G10)","v":0},null,{"$f":"SUM(I8:I10)","v":0}]
[]
[null,"Hrubá instalace - trubkování (lištování) a osazení instalačních krabic"]
[null,"instalační materiál (izolační pásky, stahovací plastové pásky, spojovací materiál, svorky, koncovky, štítky, uchycovací materiál…)",null,"kpl",1,0,{"$f":"E14*F14","v":0},0,{"$f":"E14*H14","v":0}]
[null,"Drátěný žlab rapid click 150x60 včetně konzolí/závitových tyčí a \nmontážního materiálu","HL CVFL60-150","m",70,0,{"$f":"E15*F15","v":0},0,0]
[null,"Kovová lišta","20x20","m",130,0,0,0,0]
[null,"oprava otvorů po demontáži prvku (upravení původního otvoru - sádrování - bez malby, usazení nové instalační krabice)",null,"hod",30,"x","x",0,0]
[null,"pomocné montážní, instalační a stavební práce (přesun hmot a materiálu, stěhování nábytku, propoj s tel. ústřednou, propoj s datovou sítí objektu, nepředvídatelné práce)",null,"hod",30,"x","x",0,{"$f":"H18*E18","v":0}]
[null,"odkrytí stávajících elektroinstalačních lišt, krabic, součinnost s technickým pracovníkem/správcem objektu",null,"hod",20,"x","x",0,0]
[null,"Koordinace stavby",null,"hod",5,"x","x",0,0]
[null,"Práce za provozu (provoz investora)",null,"kpl",1,"x","x",0,0]
[null,"Dokumentace skutečného provedení a dílenská dokumentace",null,"kpl",1,"x","x",0,0]
[null,"demontáž stavajících rozvodů",null,"hod",10,"x","x",0,0]
[null,"Součty:",null,null,null,null,{"$f":"SUM(G14:G23)","v":0},null,{"$f":"SUM(I14:I23)","v":0}]
[]
[null,"Rekapitulace:"]
[null,"Dodávky a montáže celkem - cena bez DPH:",null,null,null,null,null,null,{"$f":"G24+I24+I11+G11","v":0}]
[null,"Ceny jsou uvedeny v cenové relaci roku 2024 v Kč.  "]

{"sheet":"1.NP-LDN B","index":4,"n_rows":28,"n_cols":9,"rows_kept":28,"cut":false,"hidden":false,"merged":[[31,1,31,8],[0,1,0,8],[1,1,1,8],[2,1,2,8],[3,1,4,1],[3,2,4,2],[3,3,4,3],[3,4,4,4],[3,5,3,6],[3,7,3,8],[26,1,26,7],[27,1,27,8],[28,1,28,8],[30,7,30,8]]}
[null,"Výkaz výměr  \"Nemocnice Nový Bydžov - Kompletní výměna dorozumívacích zařízení sestra - pacient\""]
[null,"Objekt: Nemocnice Nový Bydžov - Budova LDN - B_půdorys 1.NP_výkres č.3"]
[]
[null,"Název","Označení","MJ","Množství","materiál",null,"montáž"]
[null,null,null,null,null,"cena/ks","celkem","cena/ks","celkem"]
[null,"Stavební část:"]
[null,"Slaboproudé rozvody - dodávka a montáž vodičů"]
[null,"kabel do trubek, nebo do lišt stíněný LSOHFR","FTP Cat 5e LSOHFR\n B2ca s1,d1,a1","m",1900,0,{"$f":"E8*F8","v":0},0,{"$f":"E8*H8","v":0}]
[null,"vodič do trubek, nebo do lišt","2x2,5 PRAFlaSafe\nB2ca s1,d1,a1","m",10,0,{"$f":"E9*F9","v":0},0,{"$f":"H9*E9","v":0}]
[null,"vodič do trubek, nebo do lišt","CYKY-J 3x2,5","m",30,0,0,0,{"$f":"H10*E10","v":0}]
[null,"Součty:",null,null,null,null,{"$f":"SUM(G8:G10)","v":0},null,{"$f":"SUM(I8:I10)","v":0}]
[]
[null,"Hrubá instalace - trubkování (lištování) a osazení instalačních krabic"]
[null,"instalační materiál (izolační pásky, stahovací plastové pásky, spojovací materiál, svorky, koncovky, štítky, uchycovací materiál…)",null,"kpl",1,0,{"$f":"E14*F14","v":0},0,{"$f":"E14*H14","v":0}]
[null,"Drátěný žlab rapid click 150x60 včetně konzolí/závitových tyčí a \nmontážního materiálu","HL CVFL60-150","m",60,0,{"$f":"E15*F15","v":0},0,0]
[null,"Kovová lišta","20x20","m",110,0,0,0,0]
[null,"oprava otvorů po demontáži prvku (upravení původního otvoru - sádrování - bez malby, usazení nové instalační krabice)",null,"hod",30,"x","x",0,0]
[null,"pomocné montážní, instalační a stavební práce (přesun hmot a materiálu, stěhování nábytku, propoj s tel. ústřednou, propoj s datovou sítí objektu, nepředvídatelné práce)",null,"hod",30,"x","x",0,{"$f":"H18*E18","v":0}]
[null,"odkrytí stávajících elektroinstalačních lišt, krabic, součinnost s technickým pracovníkem/správcem objektu",null,"hod",20,"x","x",0,0]
[null,"Koordinace stavby",null,"hod",5,"x","x",0,0]
[null,"Práce za provozu (provoz investora)",null,"kpl",1,"x","x",0,0]
[null,"Dokumentace skutečného provedení a dílenská dokumentace",null,"kpl",1,"x","x",0,0]
[null,"demontáž stavajících rozvodů",null,"hod",10,"x","x",0,0]
[null,"Součty:",null,null,null,null,{"$f":"SUM(G14:G23)","v":0},null,{"$f":"SUM(I14:I23)","v":0}]
[]
[null,"Rekapitulace:"]
[null,"Dodávky a montáže celkem - cena bez DPH:",null,null,null,null,null,null,{"$f":"G24+I24+I11+G11","v":0}]
[null,"Ceny jsou uvedeny v cenové relaci roku 2024 v Kč.  "]

{"sheet":"2.NP-LDN B","index":5,"n_rows":28,"n_cols":9,"rows_kept":28,"cut":false,"hidden":false,"merged":[[31,1,31,8],[0,1,0,8],[1,1,1,8],[2,1,2,8],[3,1,4,1],[3,2,4,2],[3,3,4,3],[3,4,4,4],[3,5,3,6],[3,7,3,8],[26,1,26,7],[27,1,27,8],[28,1,28,8],[30,7,30,8]]}
[null,"Výkaz výměr  \"Nemocnice Nový Bydžov - Kompletní výměna dorozumívacích zařízení sestra - pacient\""]
[null,"Objekt: Nemocnice Nový Bydžov - Budova LDN - B_půdorys 2.NP_výkres č.4"]
[]
[null,"Název","Označení","MJ","Množství","materiál",null,"montáž"]
[null,null,null,null,null,"cena/ks","celkem","cena/ks","celkem"]
[null,"Stavební část:"]
[null,"Slaboproudé rozvody - dodávka a montáž vodičů"]
[null,"kabel do trubek, nebo do lišt stíněný LSOHFR","FTP Cat 5e LSOHFR\n B2ca s1,d1,a1","m",3200,0,{"$f":"E8*F8","v":0},0,{"$f":"E8*H8","v":0}]
[null,"vodič do trubek, nebo do lišt","2x2,5 PRAFlaSafe\nB2ca s1,d1,a1","m",10,0,{"$f":"E9*F9","v":0},0,{"$f":"H9*E9","v":0}]
[null,"vodič do trubek, nebo do lišt","CYKY-J 3x2,5","m",30,0,0,0,{"$f":"H10*E10","v":0}]
[null,"Součty:",null,null,null,null,{"$f":"SUM(G8:G10)","v":0},null,{"$f":"SUM(I8:I10)","v":0}]
[]
[null,"Hrubá instalace - trubkování (lištování) a osazení instalačních krabic"]
[null,"instalační materiál (izolační pásky, stahovací plastové pásky, spojovací materiál, svorky, koncovky, štítky, uchycovací materiál…)",null,"kpl",1,0,{"$f":"E14*F14","v":0},0,{"$f":"E14*H14","v":0}]
[null,"Drátěný žlab rapid click 150x60 včetně konzolí/závitových tyčí a \nmontážního materiálu","HL CVFL60-150","m",70,0,{"$f":"E15*F15","v":0},0,0]
[null,"Kovová lišta","20x20","m",130,0,0,0,0]
[null,"oprava otvorů po demontáži prvku (upravení původního otvoru - sádrování - bez malby, usazení nové instalační krabice)",null,"hod",30,"x","x",0,0]
[null,"pomocné montážní, instalační a stavební práce (přesun hmot a materiálu, stěhování nábytku, propoj s tel. ústřednou, propoj s datovou sítí objektu, nepředvídatelné práce)",null,"hod",30,"x","x",0,{"$f":"H18*E18","v":0}]
[null,"odkrytí stávajících elektroinstalačních lišt, krabic, součinnost s technickým pracovníkem/správcem objektu",null,"hod",20,"x","x",0,0]
[null,"Koordinace stavby",null,"hod",5,"x","x",0,0]
[null,"Práce za provozu (provoz investora)",null,"kpl",1,"x","x",0,0]
[null,"Dokumentace skutečného provedení a dílenská dokumentace",null,"kpl",1,"x","x",0,0]
[null,"demontáž stavajících rozvodů",null,"hod",10,"x","x",0,0]
[null,"Součty:",null,null,null,null,{"$f":"SUM(G14:G23)","v":0},null,{"$f":"SUM(I14:I23)","v":0}]
[]
[null,"Rekapitulace:"]
[null,"Dodávky a montáže celkem - cena bez DPH:",null,null,null,null,null,null,{"$f":"G24+I24+I11+G11","v":0}]
[null,"Ceny jsou uvedeny v cenové relaci roku 2024 v Kč.  "]

{"sheet":"1.NP-LDN-A-Revmatologie","index":6,"n_rows":28,"n_cols":9,"rows_kept":28,"cut":false,"hidden":false,"merged":[[31,1,31,8],[0,1,0,8],[1,1,1,8],[2,1,2,8],[3,1,4,1],[3,2,4,2],[3,3,4,3],[3,4,4,4],[3,5,3,6],[3,7,3,8],[26,1,26,7],[27,1,27,8],[28,1,28,8],[30,7,30,8]]}
[null,"Výkaz výměr  \"Nemocnice Nový Bydžov - Kompletní výměna dorozumívacích zařízení sestra - pacient\""]
[null,"Objekt: Nemocnice Nový Bydžov - 1.NP - Budova LDN - A_Revmatologie_půdorys 1.NP_výkres č.5"]
[]
[null,"Název","Označení","MJ","Množství","materiál",null,"montáž"]
[null,null,null,null,null,"cena/ks","celkem","cena/ks","celkem"]
[null,"Stavební část:"]
[null,"Slaboproudé rozvody - dodávka a montáž vodičů"]
[null,"kabel do trubek, nebo do lišt stíněný LSOHFR","FTP Cat 5e LSOHFR\n B2ca s1,d1,a1","m",2500,0,{"$f":"E8*F8","v":0},0,{"$f":"E8*H8","v":0}]
[null,"vodič do trubek, nebo do lišt","2x2,5 PRAFlaSafe\nB2ca s1,d1,a1","m",10,0,{"$f":"E9*F9","v":0},0,{"$f":"H9*E9","v":0}]
[null,"vodič do trubek, nebo do lišt","CYKY-J 3x2,5","m",30,0,0,0,{"$f":"H10*E10","v":0}]
[null,"Součty:",null,null,null,null,{"$f":"SUM(G8:G10)","v":0},null,{"$f":"SUM(I8:I10)","v":0}]
[]
[null,"Hrubá instalace - trubkování (lištování) a osazení instalačních krabic"]
[null,"instalační materiál (izolační pásky, stahovací plastové pásky, spojovací materiál, svorky, koncovky, štítky, uchycovací materiál…)",null,"kpl",1,0,{"$f":"E14*F14","v":0},0,{"$f":"E14*H14","v":0}]
[null,"Drátěný žlab rapid click 150x60 včetně konzolí/závitových tyčí a \nmontážního materiálu","HL CVFL60-150","m",70,0,{"$f":"E15*F15","v":0},0,0]
[null,"Kovová lišta","20x20","m",130,0,0,0,0]
[null,"oprava otvorů po demontáži prvku (upravení původního otvoru - sádrování - bez malby, usazení nové instalační krabice)",null,"hod",30,"x","x",0,0]
[null,"pomocné montážní, instalační a stavební práce (přesun hmot a materiálu, stěhování nábytku, propoj s tel. ústřednou, propoj s datovou sítí objektu, nepředvídatelné práce)",null,"hod",30,"x","x",0,{"$f":"H18*E18","v":0}]
[null,"odkrytí stávajících elektroinstalačních lišt, krabic, součinnost s technickým pracovníkem/správcem objektu",null,"hod",20,"x","x",0,0]
[null,"Koordinace stavby",null,"hod",5,"x","x",0,0]
[null,"Práce za provozu (provoz investora)",null,"kpl",1,"x","x",0,0]
[null,"Dokumentace skutečného provedení a dílenská dokumentace",null,"kpl",1,"x","x",0,0]
[null,"demontáž stavajících rozvodů",null,"hod",10,"x","x",0,0]
[null,"Součty:",null,null,null,null,{"$f":"SUM(G14:G23)","v":0},null,{"$f":"SUM(I14:I23)","v":0}]
[]
[null,"Rekapitulace:"]
[null,"Dodávky a montáže celkem - cena bez DPH:",null,null,null,null,null,null,{"$f":"G24+I24+I11+G11","v":0}]
[null,"Ceny jsou uvedeny v cenové relaci roku 2024 v Kč.  "]

{"sheet":"2.NP-LDN-A4.I","index":7,"n_rows":28,"n_cols":9,"rows_kept":28,"cut":false,"hidden":false,"merged":[[31,1,31,8],[0,1,0,8],[1,1,1,8],[2,1,2,8],[3,1,4,1],[3,2,4,2],[3,3,4,3],[3,4,4,4],[3,5,3,6],[3,7,3,8],[26,1,26,7],[27,1,27,8],[28,1,28,8],[30,7,30,8]]}
[null,"Výkaz výměr  \"Nemocnice Nový Bydžov - Kompletní výměna dorozumívacích zařízení sestra - pacient\""]
[null,"Objekt: Nemocnice Nový Bydžov - Budova LDN - A4 - I_půdorys 2.NP_výkres č.6"]
[]
[null,"Název","Označení","MJ","Množství","materiál",null,"montáž"]
[null,null,null,null,null,"cena/ks","celkem","cena/ks","celkem"]
[null,"Stavební část:"]
[null,"Slaboproudé rozvody - dodávka a montáž vodičů"]
[null,"kabel do trubek, nebo do lišt stíněný LSOHFR","FTP Cat 5e LSOHFR\n B2ca s1,d1,a1","m",2200,0,{"$f":"E8*F8","v":0},0,{"$f":"E8*H8","v":0}]
[null,"vodič do trubek, nebo do lišt","2x2,5 PRAFlaSafe\nB2ca s1,d1,a1","m",10,0,{"$f":"E9*F9","v":0},0,{"$f":"H9*E9","v":0}]
[null,"vodič do trubek, nebo do lišt","CYKY-J 3x2,5","m",30,0,0,0,{"$f":"H10*E10","v":0}]
[null,"Součty:",null,null,null,null,{"$f":"SUM(G8:G10)","v":0},null,{"$f":"SUM(I8:I10)","v":0}]
[]
[null,"Hrubá instalace - trubkování (lištování) a osazení instalačních krabic"]
[null,"instalační materiál (izolační pásky, stahovací plastové pásky, spojovací materiál, svorky, koncovky, štítky, uchycovací materiál…)",null,"kpl",1,0,{"$f":"E14*F14","v":0},0,{"$f":"E14*H14","v":0}]
[null,"Drátěný žlab rapid click 150x60 včetně konzolí/závitových tyčí a \nmontážního materiálu","HL CVFL60-150","m",70,0,{"$f":"E15*F15","v":0},0,0]
[null,"Kovová lišta","20x20","m",130,0,0,0,0]
[null,"oprava otvorů po demontáži prvku (upravení původního otvoru - sádrování - bez malby, usazení nové instalační krabice)",null,"hod",30,"x","x",0,0]
[null,"pomocné montážní, instalační a stavební práce (přesun hmot a materiálu, stěhování nábytku, propoj s tel. ústřednou, propoj s datovou sítí objektu, nepředvídatelné práce)",null,"hod",30,"x","x",0,{"$f":"H18*E18","v":0}]
[null,"odkrytí stávajících elektroinstalačních lišt, krabic, součinnost s technickým pracovníkem/správcem objektu",null,"hod",20,"x","x",0,0]
[null,"Koordinace stavby",null,"hod",5,"x","x",0,0]
[null,"Práce za provozu (provoz investora)",null,"kpl",1,"x","x",0,0]
[null,"Dokumentace skutečného provedení a dílenská dokumentace",null,"kpl",1,"x","x",0,0]
[null,"demontáž stavajících rozvodů",null,"hod",10,"x","x",0,0]
[null,"Součty:",null,null,null,null,{"$f":"SUM(G14:G23)","v":0},null,{"$f":"SUM(I14:I23)","v":0}]
[]
[null,"Rekapitulace:"]
[null,"Dodávky a montáže celkem - cena bez DPH:",null,null,null,null,null,null,{"$f":"I24+G24+I11+G11","v":0}]
[null,"Ceny jsou uvedeny v cenové relaci roku 2024 v Kč.  "]

{"sheet":"3.NP-Interna","index":8,"n_rows":28,"n_cols":9,"rows_kept":28,"cut":false,"hidden":false,"merged":[[31,1,31,8],[0,1,0,8],[1,1,1,8],[2,1,2,8],[3,1,4,1],[3,2,4,2],[3,3,4,3],[3,4,4,4],[3,5,3,6],[3,7,3,8],[26,1,26,7],[27,1,27,8],[28,1,28,8],[30,7,30,8]]}
[null,"Výkaz výměr  \"Nemocnice Nový Bydžov - Kompletní výměna dorozumívacích zařízení sestra - pacient\""]
[null,"Objekt: Nemocnice Nový Bydžov - Budova- INTERNA_půdorys 3.NP_výkres č.7"]
[]
[null,"Název","Označení","MJ","Množství","materiál",null,"montáž"]
[null,null,null,null,null,"cena/ks","celkem","cena/ks","celkem"]
[null,"Stavební část:"]
[null,"Slaboproudé rozvody - dodávka a montáž vodičů"]
[null,"kabel do trubek, nebo do lišt stíněný LSOHFR","FTP Cat 5e LSOHFR\n B2ca s1,d1,a1","m",2500,0,{"$f":"E8*F8","v":0},0,{"$f":"E8*H8","v":0}]
[null,"vodič do trubek, nebo do lišt","2x2,5 PRAFlaSafe\nB2ca s1,d1,a1","m",10,0,{"$f":"E9*F9","v":0},0,{"$f":"H9*E9","v":0}]
[null,"vodič do trubek, nebo do lišt","CYKY-J 3x2,5","m",30,0,0,0,{"$f":"H10*E10","v":0}]
[null,"Součty:",null,null,null,null,{"$f":"SUM(G8:G10)","v":0},null,{"$f":"SUM(I8:I10)","v":0}]
[]
[null,"Hrubá instalace - trubkování (lištování) a osazení instalačních krabic"]
[null,"instalační materiál (izolační pásky, stahovací plastové pásky, spojovací materiál, svorky, koncovky, štítky, uchycovací materiál…)",null,"kpl",1,0,{"$f":"E14*F14","v":0},0,{"$f":"E14*H14","v":0}]
[null,"Drátěný žlab rapid click 150x60 včetně konzolí/závitových tyčí a \nmontážního materiálu","HL CVFL60-150","m",70,0,{"$f":"E15*F15","v":0},0,0]
[null,"Kovová lišta","20x20","m",130,0,0,0,0]
[null,"oprava otvorů po demontáži prvku (upravení původního otvoru - sádrování - bez malby, usazení nové instalační krabice)",null,"hod",30,"x","x",0,0]
[null,"pomocné montážní, instalační a stavební práce (přesun hmot a materiálu, stěhování nábytku, propoj s tel. ústřednou, propoj s datovou sítí objektu, nepředvídatelné práce)",null,"hod",30,"x","x",0,{"$f":"H18*E18","v":0}]
[null,"odkrytí stávajících elektroinstalačních lišt, krabic, součinnost s technickým pracovníkem/správcem objektu",null,"hod",20,"x","x",0,0]
[null,"Koordinace stavby",null,"hod",5,"x","x",0,0]
[null,"Práce za provozu (provoz investora)",null,"kpl",1,"x","x",0,0]
[null,"Dokumentace skutečného provedení a dílenská dokumentace",null,"kpl",1,"x","x",0,0]
[null,"demontáž stavajících rozvodů",null,"hod",10,"x","x",0,0]
[null,"Součty:",null,null,null,null,{"$f":"SUM(G14:G23)","v":0},null,{"$f":"SUM(I14:I23)","v":0}]
[]
[null,"Rekapitulace:"]
[null,"Dodávky a montáže celkem - cena bez DPH:",null,null,null,null,null,null,{"$f":"G24+I24+I11+G11","v":0}]
[null,"Ceny jsou uvedeny v cenové relaci roku 2024 v Kč.  "]

{"sheet":"4.NP-Rehabilitace","index":9,"n_rows":28,"n_cols":9,"rows_kept":28,"cut":false,"hidden":false,"merged":[[31,1,31,8],[0,1,0,8],[1,1,1,8],[2,1,2,8],[3,1,4,1],[3,2,4,2],[3,3,4,3],[3,4,4,4],[3,5,3,6],[3,7,3,8],[26,1,26,7],[27,1,27,8],[28,1,28,8],[30,7,30,8]]}
[null,"Výkaz výměr  \"Nemocnice Nový Bydžov - Kompletní výměna dorozumívacích zařízení sestra - pacient\""]
[null,"Objekt: Nemocnice Nový Bydžov - Budova - REHABILITACE_půdorys 4.NP_výkres č.8"]
[]
[null,"Název","Označení","MJ","Množství","materiál",null,"montáž"]
[null,null,null,null,null,"cena/ks","celkem","cena/ks","celkem"]
[null,"Stavební část:"]
[null,"Slaboproudé rozvody - dodávka a montáž vodičů"]
[null,"kabel do trubek, nebo do lišt stíněný LSOHFR","FTP Cat 5e LSOHFR\n B2ca s1,d1,a1","m",3550,0,{"$f":"E8*F8","v":0},0,{"$f":"E8*H8","v":0}]
[null,"vodič do trubek, nebo do lišt","2x2,5 PRAFlaSafe\nB2ca s1,d1,a1","m",10,0,{"$f":"E9*F9","v":0},0,{"$f":"H9*E9","v":0}]
[null,"vodič do trubek, nebo do lišt","CYKY-J 3x2,5","m",30,0,0,0,{"$f":"H10*E10","v":0}]
[null,"Součty:",null,null,null,null,{"$f":"SUM(G8:G10)","v":0},null,{"$f":"SUM(I8:I10)","v":0}]
[]
[null,"Hrubá instalace - trubkování (lištování) a osazení instalačních krabic"]
[null,"instalační materiál (izolační pásky, stahovací plastové pásky, spojovací materiál, svorky, koncovky, štítky, uchycovací materiál…)",null,"kpl",1,0,{"$f":"E14*F14","v":0},0,{"$f":"E14*H14","v":0}]
[null,"Drátěný žlab rapid click 150x60 včetně konzolí/závitových tyčí a \nmontážního materiálu","HL CVFL60-150","m",70,0,{"$f":"E15*F15","v":0},0,0]
[null,"Kovová lišta","20x20","m",130,0,0,0,0]
[null,"oprava otvorů po demontáži prvku (upravení původního otvoru - sádrování - bez malby, usazení nové instalační krabice)",null,"hod",30,"x","x",0,0]
[null,"pomocné montážní, instalační a stavební práce (přesun hmot a materiálu, stěhování nábytku, propoj s tel. ústřednou, propoj s datovou sítí objektu, nepředvídatelné práce)",null,"hod",30,"x","x",0,{"$f":"H18*E18","v":0}]
[null,"odkrytí stávajících elektroinstalačních lišt, krabic, součinnost s technickým pracovníkem/správcem objektu",null,"hod",20,"x","x",0,0]
[null,"Koordinace stavby",null,"hod",5,"x","x",0,0]
[null,"Práce za provozu (provoz investora)",null,"kpl",1,"x","x",0,0]
[null,"Dokumentace skutečného provedení a dílenská dokumentace",null,"kpl",1,"x","x",0,0]
[null,"demontáž stavajících rozvodů",null,"hod",10,"x","x",0,0]
[null,"Součty:",null,null,null,null,{"$f":"SUM(G14:G23)","v":0},null,{"$f":"SUM(I14:I23)","v":0}]
[]
[null,"Rekapitulace:"]
[null,"Dodávky a montáže celkem - cena bez DPH:",null,null,null,null,null,null,{"$f":"G24+I24+I11+G11","v":0}]
[null,"Ceny jsou uvedeny v cenové relaci roku 2024 v Kč.  "]